bitfinex/quotes_BTCUSD_20220109
["timestamp","ask_amount","ask_price","bid_price","bid_amount"]
[1641770247550,0.059556,41967.0,41966.0,0.72315706]
[1641770248753,0.059556,41967.0,41966.0,0.70715706]
[1641770249510,0.059556,41967.0,41966.0,0.72315706]
[1641770249712,0.059556,41967.0,41966.0,1.01990305]
[1641770250011,0.05975294,41969.0,41967.0,0.059544]
[1641770250212,0.05975294,41969.0,41968.0,0.844865]
[1641770250712,0.05975294,41969.0,41968.0,1.18105711]
[1641770250914,0.059546,41969.0,41968.0,0.344865]
[1641770251514,0.054546,41969.0,41968.0,0.360865]
[1641770251713,0.049546,41969.0,41968.0,0.360865]
[1641770252748,0.049546,41969.0,41968.0,0.344865]
[1641770253554,0.049546,41969.0,41968.0,0.360865]
[1641770254252,0.96851822,41969.0,41968.0,0.016]
[1641770254454,1.35427722,41969.0,41968.0,0.016]
[1641770254652,1.35427722,41969.0,41953.0,0.00126987]
[1641770254653,0.385759,41968.0,41953.0,0.00126987]
[1641770254852,0.53323851,41969.0,41953.0,0.00126987]
[1641770255252,0.3077854,41962.0,41958.0,0.68616972]
[1641770255452,0.05957,41961.0,41958.0,0.68616972]
[1641770255757,0.05957,41961.0,41959.0,0.344952]
[1641770256052,0.05457,41961.0,41955.0,0.3878895]
[1641770256253,0.05457,41961.0,41956.0,0.344978]
[1641770256503,0.05457,41961.0,41956.0,0.394978]
[1641770256706,0.23180941,41960.0,41956.0,0.45455]
[1641770257106,0.059573,41959.0,41957.0,0.32055953]
[1641770257307,0.059573,41959.0,41958.0,0.344964]
[1641770260654,0.054573,41959.0,41958.0,0.344964]
[1641770261054,0.054573,41959.0,41958.0,0.394964]
[1641770264104,0.054573,41959.0,41958.0,0.238364]
[1641770264306,0.054573,41959.0,41952.0,0.119144]
[1641770264307,0.2905156,41959.0,41952.0,0.119144]
[1641770264503,0.2905156,41959.0,41948.0,0.0082713]
[1641770264504,0.00120049,41958.0,41948.0,0.0082713]
[1641770264704,0.059588,41954.0,41948.0,0.0082713]
[1641770264903,0.22217788,41953.0,41948.0,0.0082713]
[1641770265306,0.47160797,41953.0,41948.0,0.0082713]
[1641770265704,0.47860797,41953.0,41948.0,0.0082713]
[1641770266308,0.47881495,41953.0,41948.0,0.0082713]
[1641770266508,0.059587,41952.0,41948.0,0.0082713]
[1641770267506,0.05979398,41952.0,41948.0,0.0082713]
[1641770267756,0.465831,41951.0,41943.0,0.39692776]
[1641770267957,0.465831,41951.0,41939.0,0.12211765]
[1641770267958,0.23504268,41950.0,41939.0,0.12211765]
[1641770268157,0.23504268,41950.0,41941.0,0.05]
[1641770268357,0.48504268,41950.0,41941.0,0.05]
[1641770268557,0.00020699,41947.0,41939.0,0.0016449]
[1641770268762,0.33550337,41942.0,41939.0,0.0016449]
[1641770268960,0.2319329,41943.0,41940.0,0.238472]
[1641770269157,0.05,41942.0,41940.0,0.238472]
[1641770269658,0.2819329,41943.0,41940.0,0.238472]
[1641770269858,0.059603,41943.0,41940.0,0.238472]
[1641770270058,0.059603,41943.0,41942.0,0.43633486]
[1641770270261,0.059603,41943.0,41942.0,0.66981486]
[1641770270459,0.059603,41943.0,41942.0,0.71981486]
[1641770270860,0.00020699,41945.0,41943.0,0.60555779]
[1641770271060,0.00020699,41945.0,41944.0,1.133466]
[1641770271267,0.00020699,41945.0,41944.0,1.083466]
[1641770271516,0.00020699,41945.0,41944.0,0.233466]
[1641770271717,0.36751913,41942.0,41940.0,0.20028]
[1641770271920,0.36751913,41942.0,41939.0,0.0016449]
[1641770271921,0.85,41940.0,41935.0,0.00017993]
[1641770272119,0.3,41937.0,41935.0,0.00017993]
[1641770272317,1.16819487,41936.0,41934.0,0.09214562]
[1641770272620,1.27669191,41935.0,41934.0,4.562e-05]
[1641770272815,1.68725052,41935.0,41934.0,4.562e-05]
[1641770273017,0.059626,41931.0,41925.0,0.00021]
[1641770273216,0.059625,41928.0,41918.0,0.4472659]
[1641770273416,0.33303131,41923.0,41922.0,0.0058167]
[1641770274118,0.38303131,41923.0,41922.0,0.0058167]
[1641770275016,0.109628,41924.0,41922.0,0.0058167]
[1641770275954,0.059628,41924.0,41922.0,0.0058167]
[1641770276158,0.11930639,41928.0,41922.0,0.0058167]
[1641770276360,0.05969139,41928.0,41924.0,0.00121418]
[1641770276556,0.05969139,41928.0,41925.0,0.44236308]
[1641770276760,8.539e-05,41928.0,41924.0,0.00121418]
[1641770277156,8.539e-05,41928.0,41925.0,0.24134771]
[1641770277356,8.539e-05,41928.0,41925.0,0.14134771]
[1641770277555,8.539e-05,41928.0,41925.0,0.57832761]
[1641770277956,8.539e-05,41928.0,41927.0,3.68176206]
[1641770278257,0.059602,41931.0,41927.0,3.73176206]
[1641770278457,0.059602,41931.0,41928.0,0.37089674]
[1641770278757,0.059602,41931.0,41929.0,0.31841365]
[1641770279018,0.00021443,41940.0,41929.0,0.31841365]
[1641770279019,0.26878405,41940.0,41931.0,0.059595]
[1641770279213,0.00021443,41940.0,41933.0,0.1]
[1641770279414,0.00021443,41940.0,41931.0,0.00834801]
[1641770279615,0.00021443,41940.0,41936.0,0.3916209]
[1641770279817,0.00021443,41940.0,41939.0,1.17104392]
[1641770279818,0.00021445,41940.0,41939.0,1.17104392]
[1641770280016,0.36751913,41942.0,41940.0,0.85]
[1641770280417,0.36751913,41942.0,41939.0,0.11262]
[1641770280418,0.36751913,41942.0,41939.0,0.1722]
[1641770281017,0.48670513,41942.0,41939.0,0.10958]
[1641770281318,0.48670513,41942.0,41938.0,0.11916]
[1641770281526,0.71014013,41942.0,41938.0,0.11916]
[1641770281718,0.76014013,41942.0,41939.0,0.017]
[1641770281917,0.48670513,41942.0,41939.0,0.017]
[1641770282117,0.059591,41941.0,41939.0,0.017]
[1641770282952,0.059591,41941.0,41938.0,0.11916]
[1641770283756,0.059591,41941.0,41938.0,0.13216]
[1641770285057,0.059591,41941.0,41938.0,0.013]
[1641770285458,0.059591,41941.0,41936.0,0.27284523]
[1641770285657,0.059591,41941.0,41938.0,0.013]
[1641770285858,0.059591,41941.0,41939.0,3.41296453]
[1641770287010,0.059591,41941.0,41939.0,3.42037399]
[1641770287206,0.059591,41941.0,41939.0,3.41973668]
[1641770287409,0.059591,41941.0,41939.0,3.41296453]
[1641770287606,0.059591,41941.0,41939.0,3.42796453]
[1641770287808,0.059591,41941.0,41939.0,3.8384384]
[1641770288905,0.059591,41941.0,41939.0,3.8734384]
[1641770289705,0.059591,41941.0,41939.0,3.8924384]
[1641770290151,0.059591,41941.0,41939.0,4.15767214]
[1641770290753,0.36772606,41942.0,41939.0,4.15767214]
[1641770290955,0.119159,41960.0,41942.0,0.19167031]
[1641770291157,0.119159,41960.0,41946.0,0.119159]
[1641770291356,0.119167,41949.0,41946.0,0.119159]
[1641770291557,0.05958,41956.0,41946.0,0.119159]
[1641770291754,0.25511099,41954.0,41951.0,0.27285354]
[1641770292153,0.30511099,41954.0,41951.0,0.27285354]
[1641770292555,0.36469399,41954.0,41951.0,0.27285354]
[1641770292756,0.119155,41952.0,41951.0,0.27285354]
[1641770293258,0.169155,41952.0,41951.0,0.27285354]
[1641770293762,0.119155,41952.0,41951.0,0.28485354]
[1641770295005,0.119155,41952.0,41951.0,0.27285354]
[1641770295207,0.119155,41952.0,41946.0,0.119159]
[1641770295406,0.05959,41949.0,41944.0,0.059589]
[1641770296305,0.05959,41949.0,41945.0,0.33324261]
[1641770296507,0.0598004,41949.0,41946.0,0.059586]
[1641770297657,0.05959,41949.0,41946.0,0.49536228]
[1641770298858,0.05959,41949.0,41946.0,0.47636228]
[1641770299658,0.05959,41949.0,41946.0,0.42877628]
[1641770300060,0.05959,41949.0,41946.0,0.012]
[1641770300460,0.10959,41949.0,41946.0,0.012]
[1641770300762,0.05959,41949.0,41946.0,0.012]
[1641770300962,0.05959,41949.0,41945.0,0.33324261]
[1641770301608,0.05959,41949.0,41945.0,0.34624261]
[1641770301905,0.05979678,41949.0,41945.0,0.34624261]
[1641770302105,0.05979678,41949.0,41946.0,0.059586]
[1641770302507,0.28622505,41949.0,41946.0,0.059586]
[1641770302706,0.28622505,41949.0,41945.0,0.34624261]
[1641770302707,0.71262969,41949.0,41945.0,0.34624261]
[1641770302905,0.48620142,41949.0,41944.0,0.119167]
[1641770303107,0.71092169,41949.0,41942.0,0.19167031]
[1641770303405,0.48599464,41949.0,41942.0,0.19167031]
[1641770303605,0.48599464,41949.0,41942.0,0.20267031]
[1641770304005,0.71008788,41949.0,41942.0,0.20267031]
[1641770304306,0.059594,41947.0,41942.0,0.20267031]
[1641770304908,0.119186,41947.0,41942.0,0.19167031]
[1641770305167,0.169188,41948.0,41947.0,0.47411546]
[1641770305862,0.169188,41948.0,41947.0,0.48411546]
[1641770306162,0.05,41948.0,41947.0,0.48411546]
[1641770306863,0.05,41948.0,41947.0,0.47411546]
[1641770307766,0.05,41948.0,41947.0,0.48511546]
[1641770308164,0.34212721,41949.0,41947.0,0.48511546]
[1641770308365,0.24588442,41949.0,41947.0,0.48511546]
[1641770309006,0.24588442,41949.0,41947.0,0.47411546]
[1641770309708,0.25388442,41949.0,41947.0,0.48611546]
[1641770310211,0.30388442,41949.0,41947.0,0.48611546]
[1641770310414,0.25388442,41949.0,41947.0,0.48611546]
[1641770310608,0.03094421,41949.0,41947.0,0.48611546]
[1641770310810,0.03094421,41949.0,41947.0,0.7763203]
[1641770311010,0.02294421,41949.0,41947.0,0.47411546]
[1641770311709,0.03094421,41949.0,41947.0,0.48611546]
[1641770312958,0.02294421,41949.0,41947.0,0.47411546]
[1641770313857,0.02294421,41949.0,41947.0,0.48611546]
[1641770315057,0.02294421,41949.0,41947.0,0.29341546]
[1641770315657,0.02294421,41949.0,41947.0,0.30541546]
[1641770317004,0.02294421,41949.0,41947.0,0.29341546]
[1641770317806,0.02294421,41949.0,41947.0,0.30641546]
[1641770319308,0.01794421,41949.0,41947.0,0.30641546]
[1641770319508,0.01794421,41949.0,41947.0,0.29341546]
[1641770319707,0.01794421,41949.0,41947.0,0.30641546]
[1641770320958,0.01794421,41949.0,41947.0,0.57999805]
[1641770321163,0.178759,41956.0,41947.0,0.34111546]
[1641770321362,0.2882,41962.0,41947.0,0.34111546]
[1641770321363,0.2882,41962.0,41952.0,0.0012568]
[1641770321557,0.5371,41964.0,41952.0,0.0012568]
[1641770321558,0.2181001,41963.0,41952.0,0.0012568]
[1641770321856,1.01018211,41965.0,41955.0,0.94847384]
[1641770322157,0.119135,41960.0,41955.0,0.99017179]
[1641770322356,0.119135,41960.0,41955.0,0.71824936]
[1641770322856,0.11924932,41960.0,41958.0,0.05957]
[1641770323456,0.05968032,41960.0,41958.0,0.05957]
[1641770323906,0.059566,41960.0,41958.0,0.06957]
[1641770324604,0.00011432,41961.0,41959.0,0.2931898]
[1641770325003,0.00011432,41961.0,41959.0,0.3431898]
[1641770325203,0.00011432,41961.0,41960.0,0.94434741]
[1641770325404,0.00011432,41961.0,41960.0,0.29434741]
[1641770325807,0.00011432,41961.0,41960.0,0.30734741]
[1641770326202,0.05956,41962.0,41960.0,0.30734741]
[1641770326402,0.05956,41962.0,41960.0,0.36690941]
[1641770326803,0.0002144,41963.0,41961.0,0.28453647]
[1641770327005,0.0002144,41963.0,41962.0,0.84325653]
[1641770327203,0.0002144,41963.0,41962.0,1.2057485]
[1641770327403,0.00021029,41963.0,41962.0,1.2557485]
[1641770327663,0.00021029,41963.0,41962.0,1.66204987]
[1641770327862,0.00021029,41963.0,41962.0,1.38954457]
[1641770328465,0.00021029,41965.0,41962.0,1.38954457]
[1641770328662,0.00021029,41965.0,41963.0,0.059553]
[1641770329665,0.00021028,41966.0,41963.0,0.075553]
[1641770329866,0.00021028,41966.0,41964.0,0.42697065]
[1641770330065,0.00021028,41966.0,41964.0,0.47697065]
[1641770330266,0.00021028,41966.0,41965.0,0.98762615]
[1641770330667,0.05975958,41967.0,41965.0,0.28762615]
[1641770331071,0.05975958,41967.0,41964.0,0.3549406]
[1641770331706,0.054553,41967.0,41964.0,0.3709406]
[1641770333208,0.054553,41967.0,41964.0,0.3549406]
[1641770333711,0.054553,41967.0,41964.0,0.3709406]
[1641770335011,0.054553,41967.0,41965.0,3.39159301]
[1641770335663,0.054553,41967.0,41966.0,0.28793815]
[1641770336461,0.054553,41967.0,41965.0,3.40759301]
[1641770337562,0.054553,41967.0,41965.0,3.39159301]
[1641770337762,0.054553,41967.0,41965.0,3.40759301]
[1641770338163,0.00020693,41968.0,41965.0,3.45759301]
[1641770338364,0.00020693,41968.0,41967.0,0.55955]
[1641770338667,0.00020693,41968.0,41967.0,0.05955]
[1641770339512,0.059549,41969.0,41967.0,0.05955]
[1641770339714,0.059549,41969.0,41967.0,0.016]
[1641770340715,0.059549,41969.0,41965.0,3.39159301]
[1641770341114,0.109549,41969.0,41965.0,3.39159301]
[1641770341417,0.109549,41969.0,41965.0,2.58011556]
[1641770341613,0.10975592,41969.0,41965.0,2.58011556]
[1641770341815,0.10975592,41969.0,41965.0,2.59311556]
[1641770342213,0.10975592,41969.0,41965.0,2.65267556]
[1641770342656,0.05975592,41969.0,41965.0,2.65267556]
[1641770342859,0.10975592,41969.0,41965.0,2.65267556]
[1641770343057,0.05975592,41969.0,41965.0,2.63967556]
[1641770343856,0.05975592,41969.0,41965.0,2.65367556]
[1641770345057,0.05975592,41969.0,41965.0,2.63967556]
[1641770345858,0.05975592,41969.0,41965.0,2.65367556]
[1641770347106,0.05975592,41969.0,41965.0,2.63967556]
[1641770347506,0.05975592,41969.0,41968.0,0.64239093]
[1641770347708,0.05975592,41969.0,41968.0,0.34239093]
[1641770348308,0.059549,41969.0,41968.0,0.34239093]
[1641770349806,0.059549,41969.0,41968.0,0.35539093]
[1641770350463,0.059549,41969.0,41968.0,0.013]
[1641770351065,0.059549,41969.0,41967.0,0.06077853]
[1641770351867,0.059549,41969.0,41967.0,0.07377853]
[1641770353067,0.059549,41969.0,41967.0,0.06077853]
[1641770353900,0.059549,41969.0,41967.0,0.07377853]
[1641770355101,0.059549,41969.0,41967.0,0.06077853]
[1641770355902,0.059549,41969.0,41967.0,0.07477853]
[1641770356603,0.00020692,41970.0,41967.0,0.07477853]
[1641770357007,0.00020692,41970.0,41967.0,0.06077853]
[1641770357853,0.00020692,41970.0,41967.0,0.07377853]
[1641770358252,0.00020691,41971.0,41967.0,0.07377853]
[1641770359054,0.00020691,41971.0,41967.0,0.06077853]
[1641770359857,0.00020691,41971.0,41967.0,0.07277853]
[1641770361054,0.00020691,41971.0,41967.0,0.06077853]
[1641770361914,0.00020691,41971.0,41967.0,0.07277853]
[1641770363114,0.00020691,41971.0,41967.0,0.06077853]
[1641770364014,0.00020691,41971.0,41968.0,0.04168188]
[1641770364215,0.00020691,41971.0,41969.0,0.059545]
[1641770365019,0.05975291,41972.0,41969.0,0.059545]
[1641770365856,0.05975291,41972.0,41969.0,0.074545]
[1641770366059,0.059546,41972.0,41969.0,0.074545]
[1641770367666,0.059546,41972.0,41969.0,0.059545]
[1641770367857,0.059546,41972.0,41969.0,0.074545]
[1641770368559,0.98843679,41972.0,41969.0,0.015]
[1641770369216,0.98843679,41972.0,41962.0,0.07398667]
[1641770369217,0.385765,41971.0,41962.0,0.07398667]
[1641770369417,0.059571,41968.0,41962.0,0.07398667]
[1641770369618,0.54636452,41963.0,41962.0,0.07398667]
[1641770369821,0.30132489,41960.0,41953.0,0.11542167]
[1641770370017,0.23864239,41959.0,41953.0,0.16542167]
[1641770370223,0.22381668,41959.0,41953.0,0.16542167]
[1641770370417,0.24423532,41962.0,41953.0,0.16542167]
[1641770370616,0.059575,41958.0,41956.0,0.059572]
[1641770372018,0.059575,41958.0,41956.0,0.088572]
[1641770373355,0.059575,41958.0,41956.0,0.059572]
[1641770373555,0.059575,41958.0,41953.0,0.11542167]
[1641770373956,0.059575,41958.0,41956.0,0.028]
[1641770374256,0.059575,41958.0,41956.0,0.087572]
[1641770375257,0.059575,41958.0,41956.0,0.059572]
[1641770375856,0.059575,41958.0,41956.0,0.076572]
[1641770377104,0.059575,41958.0,41956.0,0.059572]
[1641770378009,0.059575,41958.0,41956.0,0.082572]
[1641770379212,0.00020694,41959.0,41956.0,0.059572]
[1641770379907,0.00020694,41959.0,41956.0,0.080572]
[1641770380179,0.00020694,41960.0,41956.0,0.080572]
[1641770380582,0.00020694,41960.0,41959.0,0.39314962]
[1641770381279,0.00020694,41962.0,41959.0,0.39314962]
[1641770381480,0.00020694,41962.0,41959.0,3.06338245]
[1641770381880,0.00520694,41962.0,41959.0,3.08238245]
[1641770382481,0.06476994,41962.0,41959.0,3.08238245]
[1641770382882,0.064563,41962.0,41959.0,3.08238245]
[1641770383282,0.109563,41962.0,41959.0,3.06338245]
[1641770383909,0.109563,41962.0,41959.0,2.76879483]
[1641770384110,0.109563,41962.0,41959.0,0.098562]
[1641770384334,0.109563,41962.0,41959.0,0.039]
[1641770384510,0.0012019,41960.0,41959.0,0.039]
[1641770384710,0.26714968,41960.0,41959.0,0.039]
[1641770384912,0.26545575,41956.0,41949.0,0.9251]
[1641770385110,0.059583,41952.0,41947.0,0.73513799]
[1641770385715,0.10978984,41952.0,41947.0,0.73513799]
[1641770385911,0.11378984,41952.0,41947.0,0.77913799]
[1641770386711,0.06378984,41952.0,41947.0,0.77913799]
[1641770386911,0.06378996,41952.0,41947.0,0.77913799]
[1641770387411,0.05478996,41952.0,41947.0,0.73513799]
[1641770388062,0.05478996,41952.0,41947.0,0.75213799]
[1641770389262,0.05478996,41952.0,41947.0,0.73513799]
[1641770389863,0.10478996,41952.0,41947.0,0.73513799]
[1641770390065,0.10478996,41952.0,41947.0,0.75413799]
[1641770390263,0.3240341,41952.0,41947.0,0.75413799]
[1641770390463,0.3240341,41952.0,41947.0,0.31241546]
[1641770390664,0.27268421,41949.0,41947.0,0.31241546]
[1641770390870,0.38227021,41949.0,41947.0,0.31241546]
[1641770391411,0.109586,41949.0,41947.0,0.31241546]
[1641770391615,0.059586,41949.0,41947.0,0.5479928]
[1641770391810,0.059586,41949.0,41947.0,0.5289928]
[1641770392010,0.059586,41949.0,41947.0,0.5659928]
[1641770392415,0.2809576,41949.0,41947.0,0.5659928]
[1641770392712,0.22005991,41948.0,41947.0,0.33041546]
[1641770393313,0.22005991,41948.0,41947.0,0.29341546]
[1641770393919,0.22005991,41948.0,41947.0,0.35741546]
[1641770394214,0.059586,41949.0,41947.0,0.35551546]
[1641770395259,0.059586,41949.0,41947.0,0.29151546]
[1641770396063,0.059586,41949.0,41947.0,0.31251546]
[1641770397260,0.059586,41949.0,41947.0,0.29151546]
[1641770397960,0.059586,41949.0,41947.0,0.30551546]
[1641770399205,0.059586,41949.0,41947.0,0.29151546]
[1641770400005,0.059586,41949.0,41947.0,0.30651546]
[1641770400006,0.27891399,41949.0,41947.0,0.30651546]
[1641770400207,0.33940871,41948.0,41947.0,0.30651546]
[1641770400405,0.059586,41949.0,41947.0,0.30651546]
[1641770401210,0.059586,41949.0,41947.0,0.29151546]
[1641770401608,0.009586,41950.0,41947.0,0.34274314]
[1641770401809,0.00020695,41952.0,41951.0,0.00121716]
[1641770402007,0.00020695,41952.0,41951.0,0.95848316]
[1641770402408,0.00020695,41952.0,41951.0,0.10848316]
[1641770402669,0.00020695,41954.0,41952.0,0.31279462]
[1641770402870,0.00020695,41954.0,41953.0,0.0477]
[1641770403072,0.00020695,41954.0,41950.0,0.119131]
[1641770403268,0.05020695,41954.0,41950.0,0.119131]
[1641770403469,0.43188755,41951.0,41950.0,0.119131]
[1641770403670,0.48188755,41951.0,41948.0,0.059585]
[1641770403876,0.80599009,41951.0,41947.0,0.29151546]
[1641770404069,0.2363273,41950.0,41947.0,0.29151546]
[1641770404871,0.059585,41950.0,41947.0,0.35110046]
[1641770405972,0.062585,41950.0,41947.0,0.38710046]
[1641770406817,0.112585,41950.0,41949.0,0.23725079]
[1641770407019,0.062585,41950.0,41949.0,0.23725079]
[1641770407218,0.109585,41950.0,41949.0,0.23725079]
[1641770407417,0.059585,41950.0,41949.0,0.23725079]
[1641770407620,0.05,41950.0,41949.0,0.23725079]
[1641770408120,0.059574,41953.0,41950.0,0.05936515]
[1641770408121,0.05,41952.0,41950.0,0.05936515]
[1641770408319,0.05,41952.0,41951.0,2.66468433]
[1641770408924,0.00020694,41954.0,41951.0,2.66468433]
[1641770410165,0.00620694,41954.0,41951.0,2.69268433]
[1641770410366,0.065571,41954.0,41951.0,2.69268433]
[1641770411271,0.059571,41954.0,41951.0,2.66468433]
[1641770411868,0.32720425,41954.0,41949.0,0.00018131]
[1641770412070,0.44541008,41952.0,41951.0,0.069]
[1641770412272,0.44541008,41952.0,41944.0,0.20082]
[1641770412273,0.85,41950.0,41944.0,0.20082]
[1641770412469,0.85,41950.0,41939.0,0.0007254]
[1641770412470,0.00026665,41945.0,41939.0,0.0007254]
[1641770412768,0.13418031,41942.0,41939.0,0.0007254]
[1641770412970,0.29263309,41940.0,41939.0,0.0007254]
[1641770413165,1.13813157,41940.0,41939.0,0.0007254]
[1641770413366,1.13813157,41940.0,41928.0,0.23711718]
[1641770413367,0.059614,41936.0,41928.0,0.059611]
[1641770413567,0.119227,41932.0,41928.0,0.059611]
[1641770414214,0.009,41936.0,41928.0,0.059611]
[1641770414417,0.009,41936.0,41934.0,0.00123705]
[1641770414623,0.009,41936.0,41935.0,0.909589]
[1641770414818,0.009,41936.0,41935.0,1.24271611]
[1641770415017,0.009,41936.0,41935.0,1.29041611]
[1641770415219,8.539e-05,41951.0,41936.0,0.8481]
[1641770415418,0.26657278,41949.0,41940.0,0.31302722]
[1641770415618,0.059581,41948.0,41941.0,1.1250632]
[1641770415818,0.26657278,41949.0,41941.0,0.68162652]
[1641770416419,0.25826695,41950.0,41941.0,0.68162652]
[1641770416622,0.059588,41943.0,41941.0,0.38809639]
[1641770416820,0.059588,41943.0,41941.0,0.0477]
[1641770417019,0.17077031,41942.0,41939.0,0.05958]
[1641770417772,0.44760636,41942.0,41939.0,0.05958]
[1641770417971,0.44760636,41942.0,41939.0,0.09358]
[1641770417972,0.44960636,41942.0,41939.0,0.09358]
[1641770418174,0.059595,41941.0,41939.0,0.09358]
[1641770418773,0.059595,41941.0,41939.0,0.034]
[1641770418774,0.054595,41941.0,41939.0,0.034]
[1641770419177,0.38703281,41940.0,41939.0,0.034]
[1641770419372,0.43703281,41940.0,41939.0,0.034]
[1641770419573,0.58703281,41940.0,41939.0,0.034]
[1641770419772,0.82159642,41940.0,41939.0,0.034]
[1641770419971,0.83359642,41940.0,41937.0,0.00018587]
[1641770420172,0.68359642,41940.0,41937.0,0.00018587]
[1641770420672,0.68339642,41940.0,41937.0,0.00018587]
[1641770420871,0.29763142,41940.0,41937.0,0.00018587]
[1641770421071,0.29656361,41940.0,41937.0,0.00018587]
[1641770421274,0.28456361,41940.0,41936.0,0.00017566]
[1641770421519,0.05961,41939.0,41936.0,0.00017566]
[1641770422217,0.08161,41939.0,41936.0,0.00017566]
[1641770422418,0.08161,41939.0,41935.0,0.0001791]
[1641770423220,0.10961,41939.0,41935.0,0.0001791]
[1641770423419,0.05961,41939.0,41935.0,0.0001791]
[1641770423619,0.05,41937.0,41935.0,0.0001791]
[1641770424019,0.07361,41939.0,41935.0,0.0001791]
[1641770425269,0.05961,41939.0,41935.0,0.0001791]
[1641770425668,0.05961,41939.0,41935.0,0.00035858]
[1641770425872,0.05961,41939.0,41935.0,0.00017948]
[1641770426068,0.09261,41939.0,41935.0,0.00017948]
[1641770426470,0.09261,41939.0,41936.0,0.059601]
[1641770427272,0.05961,41939.0,41936.0,0.059601]
[1641770428072,0.07461,41939.0,41936.0,0.059601]
[1641770429314,0.05961,41939.0,41936.0,0.059601]
[1641770430821,0.00020701,41941.0,41937.0,0.27655525]
[1641770431017,0.00020701,41941.0,41939.0,0.059586]
[1641770431216,0.00020701,41941.0,41940.0,0.88057925]
[1641770431417,0.00020701,41941.0,41940.0,1.22871783]
[1641770431618,0.00020701,41941.0,41940.0,1.79818123]
[1641770432020,0.00020701,41941.0,41940.0,1.81318123]
[1641770432217,0.00020701,41941.0,41940.0,1.86088123]
[1641770432419,0.12077031,41942.0,41940.0,1.86088123]
[1641770432665,0.12077031,41942.0,41941.0,1.18872915]
[1641770432867,0.12077031,41942.0,41941.0,1.50080654]
[1641770433068,0.23490211,41964.0,41943.0,0.85]
[1641770433270,0.23490211,41964.0,41947.0,0.00129469]
[1641770433572,0.5496,41965.0,41959.0,0.26813298]
[1641770433766,0.88261823,41966.0,41959.0,0.26813298]
[1641770433767,0.29191823,41966.0,41959.0,0.26813298]
[1641770433971,0.24687069,41963.0,41959.0,0.26813298]
[1641770434578,0.05957,41961.0,41958.0,0.05957]
[1641770434770,0.05957,41961.0,41957.0,0.00129882]
[1641770434969,0.05957,41961.0,41955.0,0.119135]
[1641770435570,0.00021093,41960.0,41955.0,0.119135]
[1641770435771,0.05957,41959.0,41956.0,0.24589579]
[1641770436821,0.05957,41959.0,41957.0,0.059567]
[1641770438220,0.05957,41959.0,41957.0,0.067567]
[1641770439322,0.05957,41959.0,41957.0,0.059567]
[1641770440168,0.05957,41959.0,41957.0,0.066567]
[1641770441467,0.05957,41959.0,41957.0,0.059567]
[1641770442070,0.05957,41959.0,41957.0,0.066567]
[1641770442871,0.05957,41959.0,41957.0,0.06782173]
[1641770443924,0.05957,41959.0,41957.0,0.06082173]
[1641770444119,0.05957,41959.0,41957.0,0.06782173]
[1641770444518,0.05957,41959.0,41957.0,0.00825473]
[1641770444929,0.4076,41973.0,41957.0,0.00825473]
[1641770444930,0.4182,41974.0,41964.0,0.4189895]
[1641770445121,0.4182,41974.0,41968.0,0.00129564]
[1641770445320,0.30803303,41974.0,41968.0,0.89899564]
[1641770445522,0.063553,41979.0,41968.0,0.94899564]
[1641770445523,0.004,41979.0,41968.0,0.94899564]
[1641770445720,0.004,41979.0,41978.0,0.00127511]
[1641770445920,0.004,41979.0,41978.0,0.98059511]
[1641770446119,0.036,41979.0,41978.0,0.13059511]
[1641770446922,0.036,41979.0,41978.0,0.00127511]
[1641770447121,0.036,41979.0,41973.0,0.0477]
[1641770447320,0.036,41979.0,41971.0,0.059553]
[1641770447524,0.2995927,41975.0,41971.0,0.059553]
[1641770447771,0.40969804,41978.0,41971.0,0.36122586]
[1641770447971,0.45969804,41978.0,41971.0,0.36122586]
[1641770448171,0.01,41975.0,41971.0,0.36922586]
[1641770448572,0.01,41975.0,41971.0,0.067553]
[1641770448772,0.06955,41975.0,41971.0,0.067553]
[1641770448974,0.06976437,41975.0,41971.0,0.067553]
[1641770449375,0.05976437,41975.0,41971.0,0.059553]
[1641770449774,0.39172755,41975.0,41971.0,0.059553]
[1641770449974,0.39193827,41975.0,41971.0,0.059553]
[1641770450180,0.39193827,41975.0,41971.0,0.067553]
[1641770450181,0.4037239,41975.0,41971.0,0.067553]
[1641770450377,0.07176072,41975.0,41971.0,0.067553]
[1641770450581,0.01221072,41975.0,41971.0,0.067553]
[1641770451432,0.67971559,41974.0,41967.0,0.00017814]
[1641770451626,0.26066138,41973.0,41967.0,0.00017814]
[1641770452024,0.31066138,41973.0,41967.0,0.00017814]
[1641770452224,0.25752228,41970.0,41967.0,0.00035629]
[1641770452424,0.25752228,41970.0,41967.0,0.00017815]
[1641770452625,0.05,41970.0,41967.0,0.00017815]
[1641770452828,0.05977673,41972.0,41967.0,0.00017815]
[1641770453224,0.05977673,41972.0,41963.0,0.28753176]
[1641770453424,0.05977269,41972.0,41967.0,0.00018163]
[1641770453625,0.05977269,41972.0,41967.0,0.05973763]
[1641770454227,0.05977269,41972.0,41969.0,0.00123026]
[1641770454424,0.05977269,41972.0,41970.0,0.2887858]
[1641770454627,0.059566,41972.0,41970.0,0.2887858]
[1641770455673,0.059566,41972.0,41965.0,0.11920302]
[1641770456071,0.059566,41972.0,41970.0,0.005]
[1641770456471,0.059566,41972.0,41970.0,0.064553]
[1641770456673,0.059566,41972.0,41971.0,0.27908774]
[1641770456873,0.32137354,41974.0,41971.0,0.27908774]
[1641770457076,0.38092154,41974.0,41971.0,0.27908774]
[1641770458177,0.80538734,41974.0,41971.0,0.28208774]
[1641770458574,0.22359764,41973.0,41971.0,0.003]
[1641770459023,0.385765,41972.0,41971.0,0.003]
[1641770459219,0.76456393,41972.0,41971.0,0.003]
[1641770459419,0.81456393,41972.0,41965.0,0.00017831]
[1641770459622,0.059568,41969.0,41965.0,0.00017831]
[1641770459821,0.22461644,41968.0,41965.0,0.00017831]
[1641770460019,0.27461644,41968.0,41965.0,0.00017831]
[1641770460420,0.05,41968.0,41965.0,0.00017831]
[1641770461220,0.059558,41967.0,41964.0,0.65043321]
[1641770461620,0.059558,41967.0,41964.0,0.30791311]
[1641770462221,0.059558,41967.0,41964.0,0.30773479]
[1641770462670,0.46599553,41967.0,41964.0,0.30773479]
[1641770463271,0.059558,41967.0,41964.0,0.30773479]
[1641770464270,0.077558,41967.0,41964.0,0.31273479]
[1641770464472,0.077558,41967.0,41964.0,0.37229479]